[Event "40th Cappelle Open 2024"]
[Site "Cappelle-la-Grande"]
[Date "2024.03.07"]
[Round "8.5"]
[White "Firat, Burak"]
[Black "Lodici, Lorenzo"]
[Result "0-1"]
[ECO "C54"]
[WhiteElo "2439"]
[BlackElo "2558"]
[Annotator "TA"]
[PlyCount "74"]
[EventDate "2024.03.02"]
[EventType "swiss"]
[EventCountry "FRA"]
[SourceTitle "playchess.com"]
[Source "ChessBase"]
[SourceQuality "1"]
[TimeControl "40/5400+30:1800+30"]

{[%evp 13,74,16,18,12,15,10,51,41,45,-12,-12,-9,-11,-7,0,-86,-96,-99,-104,-91,-79,-104,-106,-115,-106,-102,-94,-99,-111,-146,-129,-137,-145,-125,-115,-230,-234,-255,-243,-271,-265,-265,-259,-281,-300,-381,-368,-518,-488,-546,-518,-480,-472,-464,-461,-1159,-997,-1189,-1159,-656,-419,-1968,-1037]} 1. e4 {[%emt 0:00:03]} e5 {[%emt 0:02:46]} 2. Nf3 {[%emt 0:00:30]} Nc6 {[%emt 0:00:02]} 3. Bc4 {[%emt 0:00:20]} Nf6 {[%emt 0:00:05]} 4. d3 {[%emt 0:00:12]} Bc5 {[%emt 0:07:35]} 5. O-O {[%emt 0:01:07]} d6 {[%emt 0:00:13]} 6. c3 {[%emt 0:00:34]} Bb6 {[%emt 0:02:00]} 7. Bb3 {[%emt 0:10:49]} h6 {[%emt 0:01:16]} 8. Nbd2 {[%emt 0:04:55]} Ne7 {[%emt 0:00:12]} 9. Nc4 {[%emt 0:01:10]} Ng6 {[%emt 0:00:27]} 10. d4 {[%emt 0:08:51] White is slightly better.} exd4 {[%emt 0:08:52]} 11. a4 {[%emt 0:12:08]} (11. Nxb6 $14 axb6 12. Qxd4 (12. Nxd4 O-O $14)) 11... dxc3 $11 {[%emt 0:14:33]} 12. e5 {[%emt 0:03:07]} dxe5 {[%emt 0:09:04][%cal Bd6e5,Be5e4,Be4f3,Bf3g2][%mdl 32] ...Be6 is the strong threat.} (12... Nxe5 {is interesting.} 13. Ncxe5 dxe5 14. Qxd8+ Kxd8 15. Nxe5 Re8) 13. Qxd8+ {[%emt 0:02:59]} Kxd8 {[%emt 0:00:01]} 14. Nxb6 {[%emt 0:08:27]} (14. Ncxe5 $11 {remains equal.} Nxe5 15. Nxe5) 14... axb6 $17 {[%emt 0:00:58] White is now going downhill.} 15. Bxf7 {[%emt 0:00:03]} e4 $1 {[%emt 0:07:00]} 16. Bxg6 {[%emt 0:17:39]} exf3 {[%emt 0:00:10]} 17. Rd1+ {[%emt 0:01:24]} Bd7 {[%emt 0:00:01]} 18. Rd3 {[%emt 0:00:12]} fxg2 $1 {[%emt 0:08:15]} 19. Rxc3 {[%emt 0:01:04]} Rxa4 {[%emt 0:00:33]} (19... Bxa4 $2 20. b3 $18 (20. Kxg2 $2 Bc6+ 21. Rxc6 Rxa1 $19)) 20. Rxa4 {[%emt 0:05:17]} Bxa4 {[%emt 0:00:11]} 21. Bf4 {[%emt 0:05:05] [#]} Bc6 $1 {[%emt 0:03:07]} ({Don't play} 21... Nd5 22. Rd3 c6 (22... Bc6 $2 23. Be4 $18) 23. Be5 $15) 22. Ra3 {[%emt 0:03:19] And now Ra8+ would win.} Nd5 {[%emt 0:00:23]} 23. Be5 {[%emt 0:00:48] Ra8+ would now be deadly.} Ke7 {[%emt 0:00:51]} 24. h4 {[%emt 0:06:32] [#]} (24. Be4 $17) 24... Ke6 $1 $19 {[%emt 0:06:12]} 25. Bg3 {[%emt 0:01:15]} Rf8 {[%emt 0:03:55]} 26. Be4 {[%emt 0:01:19]} Nf4 {[%emt 0:01:08]} 27. Re3 {[%emt 0:01:14]} Kd7 {[%emt 0:00:00]} 28. Bxc6+ {[%emt 0:00:33]} bxc6 {[%emt 0:00:16][%mdl 4096] Endgame. KRB-KRN} 29. Re4 {[%emt 0:00:01]} g5 {[%emt 0:00:31]} 30. hxg5 {[%emt 0:00:02]} (30. Rd4+ $142 Ke6 31. Re4+ Kd6 32. Rd4+ Ke5 33. Rd7) 30... hxg5 {[%emt 0:00:05]} 31. Re5 {[%emt 0:00:08]} c5 {[%emt 0:00:32]} 32. Bxf4 {[%emt 0:00:06]} Rxf4 {[%emt 0:04:38]} ({But not} 32... gxf4 33. Kxg2 Kc6 34. Re6+ Kb5 35. Kf3) 33. Rxg5 {[%emt 0:00:07] KR-KR} Rb4 {[%emt 0:00:11]} 34. Kxg2 {[%emt 0:00:04]} (34. Rd5+ $142 Kc6 35. Rd2) 34... Rxb2 {[%emt 0:00:03] White must now prevent ...c4.} 35. Kf3 {[%emt 0:00:05]} c4 {[%emt 0:00:18]} 36. Ke3 {[%emt 0:00:07]} c3 {[%emt 0:07:05]} 37. f4 {[%emt 0:01:59]} (37. Kd3 $142) 37... Rd2 {[%emt 0:01:03] Weighted Error Value: White=0.59/Black=0.10 (very precise) .  Mistake:       	White=5     	---        Inaccurate:     	White=1     	Black=1      OK:         	White=11    	Black=10     Best:        	---       	Black=2      Strong:       	---       	Black=4} 0-1

[Event "40th Cappelle Open 2024"]
[Site "Cappelle-la-Grande"]
[Date "2024.03.07"]
[Round "8.6"]
[White "Valsecchi, Alessio"]
[Black "Loiseau, Quentin"]
[Result "1/2-1/2"]
[ECO "C80"]
[WhiteElo "2490"]
[BlackElo "2412"]
[Annotator "TA"]
[PlyCount "40"]
[EventDate "2024.03.02"]
[EventType "swiss"]
[EventCountry "FRA"]
[SourceTitle "playchess.com"]
[Source "ChessBase"]
[SourceQuality "1"]
[TimeControl "40/5400+30:1800+30"]

{[%evp 18,40,-55,-52,-45,-56,-13,-29,-18,-7,-10,0,0,0,0,0,0,0,0,0,0,0,0,0,0]} 1. e4 {[%emt 0:02:51]} e5 {[%emt 0:00:35]} 2. Nf3 {[%emt 0:00:54]} Nc6 {[%emt 0:00:33]} 3. Bb5 {[%emt 0:00:34][%cal Bf1b5,Bb5a4,Ba4b3][%mdl 32]} a6 {[%emt 0:00:14]} 4. Ba4 {[%emt 0:00:05]} Nf6 {[%emt 0:00:08]} 5. O-O {[%emt 0:00:07]} Nxe4 {[%emt 0:00:08]} 6. d4 {[%emt 0:01:11]} b5 {[%emt 0:02:10]} 7. Bb3 {[%emt 0:00:05]} d5 {[%emt 0:00:03]} 8. a4 {[%emt 0:01:02]} Nxd4 {[%emt 0:21:31]} 9. Nxd4 {[%emt 0:04:13]} exd4 {[%emt 0:00:14]} 10. axb5 {[%emt 0:00:27]} Bc5 {[%emt 0:03:35]} 11. c3 {[%emt 0:07:31]} O-O {[%emt 0:03:13]} 12. cxd4 {[%emt 0:05:31]} Bd6 {[%emt 0:06:00] Schwarz hat minimalen Vorteil.} 13. Nc3 {[%emt 0:19:45] Die Stellung ist ausgeglichen.} Nxc3 {[%emt 0:10:56]} 14. bxc3 {[%emt 0:00:06]} Bb7 {[%emt 0:00:04]} 15. bxa6 {[%emt 0:01:05]} Rxa6 {[%emt 0:00:10]} 16. Rxa6 {[%emt 0:02:21]} Bxa6 {[%emt 0:00:06]} 17. Re1 {[%emt 0:00:09]} c6 {[%emt 0:01:15]} 18. Bc2 {[%emt 0:00:17]} Re8 {[%emt 0:00:20]} 19. Rxe8+ {[%emt 0:00:08]} Qxe8 {[%emt 0:00:05]} 20. Be3 {[%emt 0:00:09]} Qb8 {[%emt 0:01:11] Gewichteter Fehlerwert: Weiß=0.01 (makellos) /Schwarz=0.08 (makellos) .  Ungenau:       	---       	Schwarz=1     OK:         	Weiß=5     	Schwarz=4     Bester:       	Weiß=2     	---} 1/2-1/2

[Event "40th Cappelle Open 2024"]
[Site "Cappelle-la-Grande"]
[Date "2024.03.07"]
[Round "8.7"]
[White "Tarhan, Adar"]
[Black "Velten, Paul"]
[Result "1/2-1/2"]
[ECO "C07"]
[WhiteElo "2432"]
[BlackElo "2475"]
[Annotator "TA"]
[PlyCount "75"]
[EventDate "2024.03.02"]
[EventType "swiss"]
[EventCountry "FRA"]
[SourceTitle "playchess.com"]
[Source "ChessBase"]
[SourceQuality "1"]
[TimeControl "40/5400+30:1800+30"]

{[%evp 20,75,24,14,31,20,31,1,14,2,18,19,32,18,23,15,28,2,21,0,0,0,0,0,0,0,0,0,0,0,0,-8,-7,-5,-6,-4,-4,-10,0,-7,-5,-2,-5,-8,-12,-12,0,0,0,0,0,0,0,0,0,0,0,0]} 1. e4 {[%emt 0:00:26]} e6 {[%emt 0:00:34]} 2. d4 {[%emt 0:00:05]} d5 {[%emt 0:00:14]} 3. Nd2 {[%emt 0:00:12]} c5 {[%emt 0:00:20]} 4. Ngf3 {[%emt 0:00:23]} cxd4 {[%emt 0:00:19]} 5. exd5 {[%emt 0:00:05]} Qxd5 {[%emt 0:00:19]} 6. Bc4 {[%emt 0:00:04]} Qd6 {[%emt 0:00:09]} 7. O-O {[%emt 0:00:11]} Nf6 {[%emt 0:00:06]} 8. Nb3 {[%emt 0:00:18]} Nc6 {[%emt 0:00:11]} 9. Nbxd4 {[%emt 0:00:08]} Nxd4 {[%emt 0:00:13]} 10. Nxd4 {[%emt 0:00:21]} Bd7 {[%emt 0:02:37]} 11. Re1 {[%emt 0:04:51]} Qc7 {[%emt 0:05:38]} 12. Bf1 {[%emt 0:01:05]} Bc5 {[%emt 0:03:55]} 13. c3 {[%emt 0:28:46]} (13. Bg5 $5) 13... h6 {[%emt 0:06:08]} 14. g3 {[%emt 0:12:25]} Rd8 {[%emt 0:13:27]} 15. Bf4 {[%emt 0:03:54]} Bd6 {[%emt 0:10:07]} 16. Bxd6 {[%emt 0:04:27]} Qxd6 {[%emt 0:00:06]} 17. Qb3 {[%emt 0:00:47]} b6 {[%emt 0:12:01]} 18. Nb5 {[%emt 0:06:14][%cal Bd4b5,Bb5a3,Ba3c4][%mdl 32]} Qc5 {[%emt 0:00:37] The position is equal.} 19. a4 {[%emt 0:06:53]} a5 {[%emt 0:00:38]} 20. Qa3 {[%emt 0:00:54]} Qxa3 {[%emt 0:00:39]} 21. Nxa3 {[%emt 0:00:14]} Ke7 {[%emt 0:04:30]} 22. Nc4 {[%emt 0:01:16]} Rb8 {[%emt 0:00:04]} 23. Red1 {[%emt 0:07:45]} Rhc8 {[%emt 0:00:37]} 24. Rd4 {[%emt 0:01:46]} Rc7 {[%emt 0:02:23]} 25. Ra3 {[%emt 0:02:16]} Be8 {[%emt 0:08:08]} 26. Bg2 {[%emt 0:02:48]} Nd7 {[%emt 0:01:51] Hoping for ...e5.} 27. Nd6 {[%emt 0:01:49]} Nc5 {[%emt 0:00:32]} 28. Nxe8 {[%emt 0:00:50]} Kxe8 {[%emt 0:00:55]} 29. b4 {[%emt 0:00:09]} Nd7 {[%emt 0:01:21]} 30. Rb3 {[%emt 0:02:09] [#] aiming for bxa5.} Rbc8 {[%emt 0:00:20]} 31. bxa5 {[%emt 0:00:08]} bxa5 {[%emt 0:00:04]} 32. Rb5 {[%emt 0:00:04]} Ra7 {[%emt 0:00:12][%cal Oe8e7]} 33. Rd6 {[%emt 0:02:01]} Rxc3 {[%emt 0:13:28]} 34. Bc6 {[%emt 0:00:03]} g5 {[%emt 0:00:31]} 35. Kg2 {[%emt 0:01:13]} Ke7 {[%emt 0:00:51]} 36. Rxd7+ {[%emt 0:00:03]} Rxd7 {[%emt 0:00:04]} 37. Bxd7 {[%emt 0:00:05]} Kxd7 {[%emt 0:00:03]} 38. Rxa5 {[%emt 0:00:07] An interesting draw.   Weighted Error Value: White=0.06 (flawless) /Black=0.03 (flawless) .  Inaccurate:     	White=2     	---        OK:         	White=12    	Black=14     Best:        	White=1     	Black=1} 1/2-1/2

[Event "40th Cappelle Open 2024"]
[Site "Cappelle-la-Grande"]
[Date "2024.03.07"]
[Round "8.9"]
[White "Gopal G.N."]
[Black "Jablonicky, Martin"]
[Result "1-0"]
[ECO "C42"]
[WhiteElo "2575"]
[BlackElo "2393"]
[Annotator "TA"]
[PlyCount "97"]
[EventDate "2024.03.02"]
[EventType "swiss"]
[EventCountry "FRA"]
[SourceTitle "playchess.com"]
[Source "ChessBase"]
[SourceQuality "1"]
[TimeControl "40/5400+30:1800+30"]

{[%evp 19,97,39,37,43,41,24,33,21,24,36,28,32,26,25,17,18,25,34,96,34,18,0,34,41,35,31,91,92,83,84,95,81,91,67,75,76,81,60,60,64,71,72,76,67,64,64,94,88,82,79,94,94,88,80,91,97,95,83,173,173,151,168,144,143,252,241,275,280,270,282,282,263,314,311,298,294,306,276,339,317]} 1. e4 {[%emt 0:00:03]} e5 {[%emt 0:00:06]} 2. Nf3 {[%emt 0:00:04]} Nf6 {[%emt 0:00:05]} 3. Nxe5 {[%emt 0:00:15]} d6 {[%emt 0:00:06]} 4. Nf3 {[%emt 0:00:05]} Nxe4 {[%emt 0:00:05]} 5. d4 {[%emt 0:00:23]} d5 {[%emt 0:00:06]} 6. Bd3 {[%emt 0:00:06]} Be7 {[%emt 0:00:18]} 7. O-O {[%emt 0:00:32]} Nd6 {[%emt 0:00:04]} 8. Re1 {[%emt 0:09:13]} O-O {[%emt 0:00:06]} 9. Bf4 {[%emt 0:02:45]} Re8 {[%emt 0:00:05]} 10. Nbd2 {[%emt 0:01:11]} Nd7 {[%emt 0:00:06][%cal Bb8d7,Bd7f8,Bf8e6][%mdl 32]} 11. c3 {[%emt 0:01:13]} Nf8 {[%emt 0:00:06]} 12. Qc2 {[%emt 0:06:02]} g6 {[%emt 0:00:07]} 13. Qb3 {[%emt 0:04:14] Weiß steht etwas besser.} c6 {[%emt 0:00:23]} 14. a4 {[%emt 0:03:42]} a5 {[%emt 0:01:14]} 15. h3 {[%emt 0:02:21]} Ne6 {[%emt 0:00:11]} 16. Bh2 {[%emt 0:01:32]} Ng7 {[%emt 0:00:11]} 17. Re2 {[%emt 0:10:00]} Ra7 {[%emt 0:01:46]} 18. Rae1 {[%emt 0:02:18]} Bf5 {[%emt 0:03:50]} (18... Bf8 $14) 19. Bxf5 {[%emt 0:02:42]} (19. Bxd6 $1 $16 Qxd6 20. Bxf5 Nxf5 21. Kh1) 19... Ndxf5 $14 {[%emt 0:03:24]} 20. Nf1 {[%emt 0:12:39]} Ne6 {[%emt 0:01:21]} 21. Ne3 {[%emt 0:00:53] Und jetzt Nxf5 wäre schön.} Nxe3 {[%emt 0:00:52]} 22. Rxe3 {[%emt 0:00:01]} Bd6 {[%emt 0:09:42]} ({Vorzuziehen ist} 22... Ng7 $14) 23. Bxd6 $16 {[%emt 0:01:22]} Qxd6 {[%emt 0:00:11]} 24. Ng5 {[%emt 0:05:23]} Qd7 {[%emt 0:00:11]} 25. Qd1 {[%emt 0:07:46] Weiß hat aktiveres Spiel.} (25. Nxe6 {vereinfacht} Rxe6 26. Rxe6 fxe6 27. Qd1) 25... Raa8 {[%emt 0:05:07]} 26. Qe2 {[%emt 0:10:28]} Rab8 {[%emt 0:14:49]} 27. Nxe6 {[%emt 0:04:33]} Rxe6 {[%emt 0:00:13]} 28. Rxe6 {[%emt 0:00:04]} Qxe6 {[%emt 0:00:09]} 29. Qxe6 {[%emt 0:00:05]} fxe6 {[%emt 0:00:04]} 30. Rxe6 {[%emt 0:00:03][%mdl 4096] Endspiel. KR-KR} Kf7 {[%emt 0:00:05]} 31. Re2 {[%emt 0:06:17]} b5 {[%emt 0:00:05]} 32. axb5 {[%emt 0:00:06]} Rxb5 {[%emt 0:00:05]} 33. Kf1 {[%emt 0:01:26]} a4 {[%emt 0:02:40]} 34. Rc2 {[%emt 0:00:27]} Ke6 {[%emt 0:17:48]} 35. Ke2 {[%emt 0:00:21]} Rb3 {[%emt 0:00:06]} 36. Kd3 {[%emt 0:00:33]} a3 {[%emt 0:00:05]} 37. bxa3 {[%emt 0:00:14]} Rxa3 {[%emt 0:00:04]} 38. h4 {[%emt 0:06:43]} Kf5 {[%emt 0:10:56] [#]} (38... Ra1 $16) 39. Rb2 $1 $18 {[%emt 0:00:55]} Ra7 {[%emt 0:06:06]} 40. Rb6 {[%emt 0:00:43]} Rc7 {[%emt 0:00:05] [#]} 41. c4 $1 {[%emt 0:10:32]} Ke6 {[%emt 0:00:05]} (41... dxc4+ $16 42. Kxc4 Ra7) 42. Ra6 {[%emt 0:02:57]} Rf7 {[%emt 0:08:39]} 43. Rxc6+ {[%emt 0:07:07] Weiß hat entscheidenden Vorteil.} Kd7 {[%emt 0:00:09]} 44. Rc5 {[%emt 0:00:07]} ({Nicht} 44. cxd5 Rxf2 45. Rc2 (45. g4 Rf4 $11) 45... Rf4 $14) 44... dxc4+ {[%emt 0:01:02]} 45. Ke3 $1 {[%emt 0:00:18]} ({Weniger gut wäre} 45. Kxc4 Rxf2 46. g4 Rg2 $11) 45... Kd6 {[%emt 0:00:19]} 46. Rxc4 {[%emt 0:00:09]} Re7+ {[%emt 0:00:11]} 47. Kd3 {[%emt 0:02:51]} Rf7 {[%emt 0:00:08]} 48. Rc2 {[%emt 0:01:02]} Kd5 {[%emt 0:01:31]} 49. f3 {[%emt 0:00:16] Gewichteter Fehlerwert: Weiß=0.06 (makellos) /Schwarz=0.17 (sehr präzise) .  Fehler:       	Weiß=1     	Schwarz=4     Ungenau:       	---       	Schwarz=2     OK:         	Weiß=19    	Schwarz=11    Bester:       	Weiß=3     	Schwarz=2     Stark:        	Weiß=3     	---} 1-0

[Event "40th Cappelle Open 2024"]
[Site "Cappelle-la-Grande"]
[Date "2024.03.07"]
[Round "8.10"]
[White "Tahay, Alexis"]
[Black "Bellahcene, Bilel"]
[Result "0-1"]
[ECO "B08"]
[WhiteElo "2382"]
[BlackElo "2522"]
[Annotator "TA"]
[PlyCount "58"]
[EventDate "2024.03.02"]
[EventType "swiss"]
[EventCountry "FRA"]
[SourceTitle "playchess.com"]
[Source "ChessBase"]
[SourceQuality "1"]
[TimeControl "40/5400+30:1800+30"]

{[%evp 19,58,37,50,24,31,26,28,25,29,30,80,54,87,16,7,-23,-18,-37,-38,-83,-87,-63,-72,-220,-187,-187,-223,-370,-367,-402,-407,-604,-510,-604,-600,-588,-584,-582,-582,-2649,-2022]} 1. e4 {[%emt 0:01:03]} d6 {[%emt 0:09:35]} 2. d4 {[%emt 0:00:20]} Nf6 {[%emt 0:00:05]} 3. Nc3 {[%emt 0:00:04]} g6 {[%emt 0:00:02]} 4. Nf3 {[%emt 0:00:43]} Bg7 {[%emt 0:00:42]} 5. Be2 {[%emt 0:00:10]} O-O {[%emt 0:00:09]} 6. O-O {[%emt 0:00:03]} Nc6 {[%emt 0:01:09]} 7. Be3 {[%emt 0:02:43]} Bg4 {[%emt 0:06:37]} 8. h3 {[%emt 0:03:22]} Bxf3 {[%emt 0:00:44]} 9. Bxf3 {[%emt 0:00:03]} e5 {[%emt 0:00:04]} 10. d5 {[%emt 0:00:04]} Ne7 {[%emt 0:00:09]} 11. Ne2 {[%emt 0:11:49]} Nd7 {[%emt 0:03:19]} 12. c4 {[%emt 0:02:34]} f5 {[%emt 0:00:10]} 13. Nc3 {[%emt 0:04:34] White has an edge.} Nf6 {[%emt 0:02:04]} 14. Qd3 {[%emt 0:07:39]} h5 {[%emt 0:11:59]} (14... a6 $11) 15. Bg5 {[%emt 0:07:55]} Nh7 {[%emt 0:00:19]} 16. Bxe7 {[%emt 0:05:24]} ({Better is} 16. Bd2 $16) 16... Qxe7 $11 {[%emt 0:00:04] Black is weak on the light squares} 17. exf5 {[%emt 0:00:05]} gxf5 {[%emt 0:20:29]} 18. Bxh5 {[%emt 0:00:17]} e4 {[%emt 0:00:17]} 19. Qg3 {[%emt 0:02:42] [#]} Kh8 $1 {[%emt 0:07:06] ...Rg8 would now be deadly.} 20. Ne2 {[%emt 0:08:14] Nf4 is the strong threat.} Rg8 $36 {[%emt 0:03:55][%mdl 2048] Black is in control.} 21. Nf4 {[%emt 0:17:58] White does not recover from this.} (21. Qe3 $17) 21... Bxb2 $19 {[%emt 0:01:26]} 22. Ng6+ {[%emt 0:00:37]} Rxg6 $1 {[%emt 0:00:08]} 23. Qxg6 {[%emt 0:00:07]} (23. Bxg6 {only move.} Bxa1 24. Bxf5) 23... Bxa1 {[%emt 0:01:39]} 24. Rxa1 {[%emt 0:00:03][%cal Oa1b1] [#]} Rg8 $1 {[%emt 0:00:12]} 25. Qf7 {[%emt 0:05:50]} ({Much worse is} 25. Qxf5 Qg7 26. Qxe4 Qxa1+ $19) (25. Qh6 $142 Qh4 26. Kh1) 25... Qg5 {[%emt 0:00:47] Black is clearly winning.} 26. g3 {[%emt 0:00:12]} e3 {[%emt 0:02:18] Threatens to win with ...exf2+.} 27. g4 {[%emt 0:05:08]} exf2+ {[%emt 0:02:41]} 28. Kg2 {[%emt 0:00:36]} Nf6 {[%emt 0:01:29]} 29. Kf3 {[%emt 0:01:07]} Nxh5 {[%emt 0:01:03] Weighted Error Value: White=0.66/Black=0.12 (very precise) .  Mistake:       	White=4     	Black=1      Inaccurate:     	White=4     	Black=1      OK:         	White=2     	Black=5      Best:        	---       	Black=3      Strong:       	---       	Black=3} 0-1

[Event "40th Cappelle Open 2024"]
[Site "Cappelle-la-Grande"]
[Date "2024.03.07"]
[Round "8.11"]
[White "Lucas, Arthur"]
[Black "Girel, Joseph"]
[Result "1/2-1/2"]
[ECO "D00"]
[WhiteElo "2341"]
[BlackElo "2486"]
[Annotator "TA"]
[PlyCount "52"]
[EventDate "2024.03.02"]
[EventType "swiss"]
[EventCountry "FRA"]
[SourceTitle "playchess.com"]
[Source "ChessBase"]
[SourceQuality "1"]
[TimeControl "40/5400+30:1800+30"]

{[%evp 9,52,-3,0,0,0,-3,0,0,0,0,0,0,0,0,0,0,0,-97,0,0,0,0,0,-156,0,0,0,0,0,0,0,0,191,0,521,530,585,0,0,0,0,0,0,0,0]} 1. d4 {[%emt 0:00:32]} d5 {[%emt 0:01:43]} 2. Nc3 {[%emt 0:00:26]} Nf6 {[%emt 0:03:04]} 3. Bf4 {[%emt 0:00:06]} a6 {[%emt 0:00:11]} 4. e3 {[%emt 0:00:41]} e6 {[%emt 0:00:32]} 5. g4 {[%emt 0:01:03]} Bb4 {[%emt 0:01:49]} 6. Nge2 {[%emt 0:01:53][%cal Bg1e2,Be2f4,Bf4g6,Bg6h8][%mdl 32]} O-O {[%emt 0:01:44]} 7. a3 {[%emt 0:00:33]} Be7 {[%emt 0:02:22]} 8. g5 {[%emt 0:00:35]} Nh5 {[%emt 0:00:16][%cal Oh5f4]} 9. h4 {[%emt 0:01:01]} Nxf4 {[%emt 0:00:05]} 10. Nxf4 {[%emt 0:00:14]} c5 {[%emt 0:00:03]} 11. Bd3 {[%emt 0:01:38]} c4 {[%emt 0:00:04]} 12. Bxh7+ {[%emt 0:00:47]} Kxh7 {[%emt 0:00:02]} 13. Qh5+ {[%emt 0:00:07]} Kg8 {[%emt 0:00:05]} 14. g6 $1 {[%emt 0:00:03]} fxg6 {[%emt 0:00:07]} 15. Nxg6 {[%emt 0:00:07] [#] Weiss will mit Qh8+ Matt setzen.} Rf5 {[%emt 0:01:16]} 16. Qh8+ {[%emt 0:00:11]} Kf7 {[%emt 0:00:05]} 17. Qh7 {[%emt 0:00:06] Schwarz muss nun h5 beachten.} Nc6 {[%emt 0:03:42] Und jetzt ...Bd7 wäre schön.} 18. e4 {[%emt 0:04:50]} (18. f4 $2 Bd7 (18... Qg8 19. Nh8+ Kf8 20. Ng6+ Kf7 21. Nh8+ Kf8 22. Ng6+ Kf7 $11) 19. h5 Qg8 20. Qxg8+ Kxg8 $19) 18... dxe4 {[%emt 0:05:56]} 19. Nh8+ $1 {[%emt 0:00:44] Hervorragende Reitkunst.} Kf8 {[%emt 0:02:14]} 20. O-O-O {[%emt 0:04:26]} Qa5 $2 {[%emt 0:33:17]} (20... Bxa3 $1 $11 21. Rhg1 (21. bxa3 Qd6 $11) 21... Qa5 (21... Bb4 $2 22. Rxg7 Ne7 23. Nf7 $18) 22. Qxg7+ (22. Nxe4 $2 c3 $19) 22... Ke8) 21. Rhg1 $2 {[%emt 0:11:44]} (21. Nxe4 c3 (21... Qd5 22. Ng6+ Ke8 23. Rhe1 $16) 22. Nxc3 (22. bxc3 $2 Bxa3+ 23. Kd2 Qd5 $17) 22... Bxa3 $11) ({Weiss kommt nicht vorbei an} 21. Ng6+ $18 Kf7 22. Nxe7 (22. Nxe4 Qd5 $11)) 21... Ke8 $2 {[%emt 0:07:54][%mdl 8192]} (21... Bxa3 $1 $11 {und Schwarz steht sicher.} 22. Rxg7 (22. Nxe4 $2 c3 $19) (22. Qxg7+ Ke8 $11) 22... Bxb2+ (22... Qxc3 23. Qg8#) 23. Kxb2 Qb4+ 24. Kc1 Qa3+ 25. Kd2 Rxf2+ 26. Ke3 Qxc3+ 27. Kxf2 Qf3+ 28. Kg1 (28. Ke1 Qe3+ 29. Kf1 Qf3+ 30. Ke1 Qe3+ 31. Kf1 Qf3+ 32. Ke1 $11) 28... Qxd1+ 29. Kg2 Qd2+ (29... Qxd4 30. Qg8#) (29... Qxc2+ 30. Kh1 $11) 30. Kg3 Qe3+ (30... Qxd4 31. Qg8#) 31. Kh2 Qf2+ (31... Qxd4 32. Qg8#) 32. Rg2 Qf4+ (32... Qxd4 33. Rg8#) 33. Kh1 Qf1+ (33... Nxd4 34. Rg8#) 34. Kh2 Ne7 (34... Nxd4 35. Rg8#) (34... Qf4+ 35. Kg1 $11)) 22. Rxg7 $18 {[%emt 0:03:44] [#] Droht d5 und aus.} (22. Nxe4 Qd5 23. Nc3 Qd6 $11) 22... Bxa3 {[%emt 0:07:10][%cal Oc6e7]} 23. bxa3 $2 {[%emt 0:45:20]} ({Nicht} 23. Nxe4 Bf8 $16) (23. Rg8+ $18 Bf8 24. Ng6 (24. Nxe4 Ne7 $11)) 23... Qxa3+ $11 {[%emt 0:00:16] Die Stellung ist ausgeglichen.} 24. Kb1 {[%emt 0:03:12] Rg8+ wäre nun fies.} Qb4+ {[%emt 0:00:11]} ({Lieber nicht} 24... Qxc3 25. Rg8+ Rf8 26. Rxf8+ Kxf8 27. Qf7#) 25. Kc1 {[%emt 0:00:12] Droht stark Rg8+.} Qa3+ {[%emt 0:00:03]} 26. Kb1 {[%emt 0:04:13] Und Rg8+ würde nun gewinnen. Tanz auf der Rasierklinge.} Qb4+ {[%emt 0:00:08] Gewichteter Fehlerwert: Weiß=0.42/Schwarz=0.38.  Verlustzug:     	---       	Schwarz=2     Gewinn verpasst:   	Weiß=2     	---        Ungenau:       	---       	Schwarz=2     OK:         	Weiß=10    	Schwarz=7     Bester:       	Weiß=4     	Schwarz=2     Stark:        	Weiß=2     	---} ({Schlechter ist} 26... Qxc3 27. Rg8+ Rf8 28. Rxf8+ Kxf8 29. Qf7#) 1/2-1/2